[Event "36th Belgrade Trophy 2023"]
[Site "Belgrade"]
[Date "2023.11.27"]
[Round "3.7"]
[White "Pap, Misa"]
[Black "Chubakov, Sultan"]
[Result "1/2-1/2"]
[ECO "B18"]
[WhiteElo "2426"]
[BlackElo "2079"]
[Annotator "RC"]
[PlyCount "121"]
[EventDate "2023.10.23"]
[EventType "swiss"]
[EventCountry "SRB"]
[SourceTitle "playchess.com"]
[Source "ChessBase"]
[SourceQuality "1"]
[TimeControl "40/5400+30:900+30"]

1. e4 {[%emt 0:00:10]} c6 {[%emt 0:00:15]} 2. d4 {[%emt 0:00:11]} d5 {[%emt 0:00:04]} 3. Nd2 {[%emt 0:00:07]} dxe4 {[%emt 0:00:04]} 4. Nxe4 {[%emt 0:00:06]} Bf5 {[%emt 0:00:06]} 5. Ng3 {[%emt 0:00:08]} Bg6 {[%emt 0:00:06]} 6. h4 {[%emt 0:04:16]} h6 {[%emt 0:00:04]} 7. Nh3 {[%emt 0:01:07]} Nf6 {[%emt 0:02:06]} 8. Nf4 {[%emt 0:00:05]} Bh7 {[%emt 0:00:10]} 9. Bc4 {[%emt 0:00:21]} e6 {[%emt 0:01:06]} 10. O-O {[%emt 0:00:07]} Bd6 {[%emt 0:04:59]} 11. Re1 {[%emt 0:00:08]} O-O {[%emt 0:02:20]} 12. c3 {[%emt 0:00:04]} Nd5 {[%emt 0:11:56]} 13. Qg4 {[%emt 0:08:39]} Nxf4 {[%emt 0:02:45]} 14. Bxf4 {[%emt 0:00:07]} Bxf4 {[%emt 0:00:18]} 15. Qxf4 {[%emt 0:00:04]} Nd7 {[%emt 0:04:10]} 16. Rad1 {[%emt 0:04:23]} a5 {[%emt 0:06:44]} 17. Bd3 {[%emt 0:04:31]} Nf6 {[%emt 0:04:23]} 18. Bxh7+ {[%emt 0:00:40]} Kxh7 {[%emt 0:00:14]} 19. Ne4 {[%emt 0:05:01]} Nxe4 {[%emt 0:00:55]} 20. Rxe4 {[%emt 0:01:26]} Qd5 {[%emt 0:06:06]} 21. b3 {[%emt 0:03:26]} Kg8 {[%emt 0:52:09]} 22. Rd3 {[%emt 0:03:36]} a4 {[%emt 0:00:00]} 23. c4 {[%emt 0:02:11]} Qd8 {[%emt 0:00:00]} 24. Rg3 {[%emt 0:04:28]} Kh8 {[%emt 0:00:00]} 25. b4 {[%emt 0:05:39]} Qf6 {[%emt 0:00:00]} 26. Qe3 {[%emt 0:01:48]} Qe7 {[%emt 0:00:00]} 27. a3 {[%emt 0:04:47]} Rad8 {[%emt 0:00:00]} 28. h5 {[%emt 0:02:39]} Rg8 {[%emt 0:00:00]} 29. Rf3 {[%emt 0:04:30]} Rd7 {[%emt 0:00:00]} 30. Ref4 {[%emt 0:05:21]} f5 {[%emt 0:00:00]} 31. Rg3 {[%emt 0:04:51]} Re8 {[%emt 0:00:16]} 32. Qe5 {[%emt 0:18:16]} Qd6 {[%emt 0:01:24]} 33. Re3 {[%emt 0:04:36]} Red8 {[%emt 0:01:29]} 34. Rff3 {[%emt 0:02:12]} Qxe5 {[%emt 0:00:49]} 35. Rxe5 {[%emt 0:00:10]} Rxd4 {[%emt 0:00:05]} 36. Rxe6 {[%emt 0:00:03]} Rxc4 {[%emt 0:00:40]} 37. Rxf5 {[%emt 0:00:01]} Rd3 {[%emt 0:02:22]} 38. g3 {[%emt 0:01:26]} Rd5 {[%emt 0:00:20]} 39. Rf7 {[%emt 0:03:30]} b5 {[%emt 0:00:57]} 40. Rg6 {[%emt 0:00:00]} Rxh5 {[%emt 0:00:00]} 41. Rgxg7 {[%emt 0:04:08]} Rf5 {[%emt 0:03:29]} 42. Rh7+ {[%emt 0:02:41]} Kg8 {[%emt 0:00:04]} 43. Rfg7+ {[%emt 0:00:11]} Kf8 {[%emt 0:00:07]} 44. Rc7 {[%emt 0:00:08]} Kg8 {[%emt 0:03:12]} 45. Rxh6 {[%emt 0:02:10]} Rc1+ {[%emt 0:00:21]} 46. Kg2 {[%emt 0:00:11]} Rc2 {[%emt 0:00:29]} 47. Rg6+ {[%emt 0:00:53]} Kf8 {[%emt 0:02:18]} 48. Rgxc6 {[%emt 0:00:23]} Rfxf2+ {[%emt 0:00:10]} 49. Kh3 {[%emt 0:00:04]} Rxc6 {[%emt 0:00:16]} 50. Rxc6 {[%emt 0:00:04]} Rf3 {[%emt 0:00:05]} 51. Rc5 {[%emt 0:00:20]} Rxa3 {[%emt 0:00:04]} 52. Rxb5 {[%emt 0:00:03]} Rb3 {[%emt 0:00:13]} 53. Kh4 {[%emt 0:00:24]} a3 {[%emt 0:00:08]} 54. g4 {[%emt 0:00:02]} a2 {[%emt 0:00:11]} 55. Ra5 {[%emt 0:00:03]} Rxb4 {[%emt 0:00:11]} 56. Rxa2 {[%emt 0:00:02]} Rb7 {[%emt 0:00:45]} 57. g5 {[%emt 0:00:09]} Kg7 {[%emt 0:00:06]} 58. Kh5 {[%emt 0:00:02]} Rc7 {[%emt 0:00:08]} 59. Ra6 {[%emt 0:00:13]} Rb7 {[%emt 0:00:18]} 60. Rg6+ {[%emt 0:00:19]} Kh7 {[%emt 0:00:06]} 61. Rh6+ {[%emt 0:00:50]} 1/2-1/2

[Event "36th Belgrade Trophy 2023"]
[Site "Belgrade"]
[Date "2023.11.27"]
[Round "3.8"]
[White "Stanojevic, Ilija"]
[Black "Antic, Dejan"]
[Result "0-1"]
[ECO "E01"]
[WhiteElo "2117"]
[BlackElo "2362"]
[Annotator "RC"]
[PlyCount "92"]
[EventDate "2023.10.23"]
[EventType "swiss"]
[EventCountry "SRB"]
[SourceTitle "playchess.com"]
[Source "ChessBase"]
[SourceQuality "1"]
[TimeControl "40/5400+30:900+30"]

1. d4 {[%emt 0:00:10]} e6 {[%emt 0:00:12]} 2. Nf3 {[%emt 0:01:04]} Nf6 {[%emt 0:01:20]} 3. c4 {[%emt 0:01:48]} d5 {[%emt 0:01:55]} 4. g3 {[%emt 0:00:35]} Bb4+ {[%emt 0:01:15]} 5. Bd2 {[%emt 0:01:01]} Bd6 {[%emt 0:04:18]} 6. Qc2 {[%emt 0:02:25]} O-O {[%emt 0:03:00]} 7. Bg2 {[%emt 0:05:18]} Nbd7 {[%emt 0:04:30]} 8. Bf4 {[%emt 0:09:53]} Bxf4 {[%emt 0:05:34]} 9. gxf4 {[%emt 0:00:05]} dxc4 {[%emt 0:01:26]} 10. Qxc4 {[%emt 0:02:18]} Nd5 {[%emt 0:03:06]} 11. e3 {[%emt 0:01:27]} b5 {[%emt 0:05:10]} 12. Qc2 {[%emt 0:05:51]} Bb7 {[%emt 0:05:13]} 13. Nc3 {[%emt 0:11:11]} c5 {[%emt 0:09:40]} 14. Ng5 {[%emt 0:16:38]} g6 {[%emt 0:13:12]} 15. Nxd5 {[%emt 0:03:09]} Bxd5 {[%emt 0:13:19]} 16. Bxd5 {[%emt 0:03:21]} exd5 {[%emt 0:00:13]} 17. dxc5 {[%emt 0:01:15]} Qa5+ {[%emt 0:01:04]} 18. Qd2 {[%emt 0:01:57]} Qxd2+ {[%emt 0:01:18]} 19. Kxd2 {[%emt 0:00:05]} Nxc5 {[%emt 0:00:48]} 20. Rac1 {[%emt 0:02:01]} Rac8 {[%emt 0:01:02]} 21. Rc2 {[%emt 0:03:14]} Ne4+ {[%emt 0:09:14]} 22. Nxe4 {[%emt 0:00:32]} dxe4 {[%emt 0:00:37]} 23. Rhc1 {[%emt 0:07:12]} Rfd8+ {[%emt 0:03:21]} 24. Ke1 {[%emt 0:02:43]} Rxc2 {[%emt 0:00:14]} 25. Rxc2 {[%emt 0:00:04]} Rd5 {[%emt 0:00:10]} 26. f3 {[%emt 0:00:35]} exf3 {[%emt 0:02:29]} 27. Kf2 {[%emt 0:00:04]} Rh5 {[%emt 0:03:32]} 28. Kxf3 {[%emt 0:00:23]} Rh3+ {[%emt 0:00:07]} 29. Ke4 {[%emt 0:00:26]} Kg7 {[%emt 0:00:35]} 30. b4 {[%emt 0:04:03]} h6 {[%emt 0:04:49]} 31. Re2 {[%emt 0:03:10]} g5 {[%emt 0:00:33]} 32. fxg5 {[%emt 0:02:49]} hxg5 {[%emt 0:00:11]} 33. Kf5 {[%emt 0:01:44]} f6 {[%emt 0:00:47]} 34. Ke6 {[%emt 0:01:13]} Kg6 {[%emt 0:00:27]} 35. Kd5 {[%emt 0:07:16]} g4 {[%emt 0:00:30]} 36. Kc6 {[%emt 0:00:32]} Rh5 {[%emt 0:00:48]} 37. Kb7 {[%emt 0:00:44]} Re5 {[%emt 0:00:12]} 38. Kxa7 {[%emt 0:00:35]} f5 {[%emt 0:00:07]} 39. Ka6 {[%emt 0:00:35]} f4 {[%emt 0:00:19]} 40. Rg2 {[%emt 0:00:00]} fxe3 {[%emt 0:00:00]} 41. Rxg4+ {[%emt 0:02:56]} Kf5 {[%emt 0:02:33]} 42. Rg1 {[%emt 0:00:04]} e2 {[%emt 0:01:52]} 43. Re1 {[%emt 0:04:47]} Kf4 {[%emt 0:00:10]} 44. Ka5 {[%emt 0:04:33]} Ke3 {[%emt 0:00:38]} 45. a4 {[%emt 0:00:54]} bxa4+ {[%emt 0:01:12]} 46. Kxa4 {[%emt 0:00:54]} Kd2 {[%emt 0:02:01]} 0-1

[Event "36th Belgrade Trophy 2023"]
[Site "Belgrade"]
[Date "2023.11.27"]
[Round "3.9"]
[White "Milosevic, Milos"]
[Black "Dimitrijevic, Dusan"]
[Result "1-0"]
[ECO "D44"]
[WhiteElo "2362"]
[BlackElo "2074"]
[Annotator "RC"]
[PlyCount "61"]
[EventDate "2023.10.23"]
[EventType "swiss"]
[EventCountry "SRB"]
[SourceTitle "playchess.com"]
[Source "ChessBase"]
[SourceQuality "1"]
[TimeControl "40/5400+30:900+30"]

1. Nf3 {[%emt 1:31:00]} d5 {[%emt 0:02:00]} 2. d4 {[%emt 0:00:00]} Nf6 {[%emt 0:00:47]} 3. c4 {[%emt 0:00:00]} c6 {[%emt 0:00:16]} 4. Nc3 {[%emt 0:00:00]} e6 {[%emt 0:00:35]} 5. Bg5 {[%emt 0:02:00]} dxc4 {[%emt 0:02:38]} 6. e4 {[%emt 0:00:00]} b5 {[%emt 1:27:14]} 7. e5 {[%emt 0:00:00]} h6 {[%emt 0:00:30]} 8. Bh4 {[%emt 0:01:30]} g5 {[%emt 0:00:30]} 9. Nxg5 {[%emt 0:00:00]} hxg5 {[%emt 0:00:00]} 10. Bxg5 {[%emt 0:00:00]} Be7 {[%emt 0:00:00]} 11. exf6 {[%emt 0:01:30]} Bxf6 {[%emt 0:01:30]} 12. Bxf6 {[%emt 0:00:00]} Qxf6 {[%emt 0:00:30]} 13. g3 {[%emt 0:00:00]} Na6 {[%emt 0:00:30]} 14. Bg2 {[%emt 0:01:30]} Bb7 {[%emt 0:00:00]} 15. a4 {[%emt 0:00:30]} b4 {[%emt 0:00:00]} 16. Ne4 {[%emt 0:00:00]} Qe7 {[%emt 0:00:00]} 17. Qe2 {[%emt 0:00:00]} f5 {[%emt 0:00:00]} 18. Nd2 {[%emt 0:01:30]} c3 {[%emt 0:02:30]} 19. bxc3 {[%emt 0:00:00]} bxc3 {[%emt 0:00:00]} 20. Nc4 {[%emt 0:01:00]} Nb4 {[%emt 0:01:00]} 21. O-O {[%emt 0:00:30]} Ba6 {[%emt 0:00:30]} 22. Rab1 {[%emt 0:00:30]} Rb8 {[%emt 0:00:30]} 23. Rfe1 {[%emt 0:00:30]} O-O {[%emt 0:00:00]} 24. Bf1 {[%emt 0:00:00]} Nd5 {[%emt 0:00:00]} 25. Rxb8 {[%emt 0:00:00]} Rxb8 {[%emt 0:01:30]} 26. Qh5 {[%emt 0:01:30]} c2 {[%emt 0:00:00]} 27. Qg6+ {[%emt 0:00:30]} Kf8 {[%emt 0:00:00]} 28. Qh6+ {[%emt 0:00:30]} Kg8 {[%emt 0:01:30]} 29. Rxe6 {[%emt 0:00:00]} Qh7 {[%emt 0:00:30]} 30. Qg5+ {[%emt 0:00:00]} Kh8 {[%emt 0:00:00]} 31. Rh6 {[%emt 0:00:00]} 1-0

[Event "36th Belgrade Trophy 2023"]
[Site "Belgrade"]
[Date "2023.11.27"]
[Round "3.10"]
[White "Eric, Jovana"]
[Black "Mezentsev, Ivan"]
[Result "0-1"]
[ECO "B56"]
[WhiteElo "2112"]
[BlackElo "2362"]
[Annotator "RC"]
[PlyCount "172"]
[EventDate "2023.10.23"]
[EventType "swiss"]
[EventCountry "SRB"]
[SourceTitle "playchess.com"]
[Source "ChessBase"]
[SourceQuality "1"]
[TimeControl "40/5400+30:900+30"]

1. e4 {[%emt 1:31:00]} c5 {[%emt 1:31:00]} 2. Nf3 {[%emt 0:00:30]} d6 {[%emt 0:00:30]} 3. d4 {[%emt 0:00:30]} cxd4 4. Nxd4 {[%emt 0:00:30]} Nf6 {[%emt 0:01:00]} 5. Nc3 {[%emt 0:00:30]} Bd7 {[%emt 0:00:30]} 6. Bg5 {[%emt 0:00:00]} e6 7. Qd2 {[%emt 0:01:00]} a6 {[%emt 0:01:00]} 8. f3 {[%emt 0:00:30]} h6 {[%emt 0:00:30]} 9. Be3 {[%emt 0:00:30]} b5 {[%emt 0:00:30]} 10. O-O-O {[%emt 0:00:30]} b4 {[%emt 0:00:00]} 11. Nb1 e5 {[%emt 0:01:00]} 12. Nb3 {[%emt 0:01:00]} a5 {[%emt 0:00:30]} 13. Qf2 {[%emt 0:00:30]} Qc8 {[%emt 0:00:30]} 14. Bb6 {[%emt 0:00:30]} a4 {[%emt 0:00:30]} 15. Na5 {[%emt 0:00:30]} Be7 {[%emt 0:00:30]} 16. Nc4 {[%emt 0:00:30]} Qc6 {[%emt 0:00:30]} 17. Na5 {[%emt 0:00:30]} Qc8 {[%emt 0:00:30]} 18. Nc4 {[%emt 0:00:00]} Qc6 19. Na5 {[%emt 0:01:00]} Rxa5 {[%emt 0:00:00]} 20. Bxa5 {[%emt 0:00:00]} d5 {[%emt 0:00:00]} 21. Qb6 O-O {[%emt 0:02:00]} 22. a3 {[%emt 0:01:30]} Qxb6 {[%emt 0:00:00]} 23. Bxb6 {[%emt 0:00:00]} dxe4 {[%emt 0:00:00]} 24. axb4 Bxb4 {[%emt 0:01:30]} 25. fxe4 {[%emt 0:00:00]} Nxe4 26. Bd3 {[%emt 0:02:00]} Bc6 {[%emt 0:01:00]} 27. c3 {[%emt 0:00:00]} Be7 {[%emt 0:00:30]} 28. Rhe1 {[%emt 0:01:00]} Bg5+ {[%emt 0:00:00]} 29. Be3 Nf2 {[%emt 0:01:00]} 30. Bxg5 {[%emt 0:01:00]} hxg5 {[%emt 0:00:00]} 31. Rd2 Nxd3+ {[%emt 0:00:00]} 32. Rxd3 f6 {[%emt 0:00:00]} 33. g3 {[%emt 0:00:00]} Nd7 34. Rd6 {[%emt 0:02:00]} Rc8 {[%emt 0:02:30]} 35. Red1 {[%emt 0:00:00]} Nf8 {[%emt 0:00:00]} 36. Rd8 Rc7 {[%emt 0:00:00]} 37. Na3 Kf7 {[%emt 0:00:27]} 38. Nc4 Ke7 {[%emt 0:01:33]} 39. Nb6 {[%emt 0:00:00]} Ne6 40. Rc8 {[%emt 0:00:00]} g4 {[%emt 0:00:00]} 41. Rxc7+ {[%emt 0:00:00]} Nxc7 {[%emt 0:03:48]} 42. Nc8+ Ke8 {[%emt 0:13:12]} 43. Nd6+ {[%emt 0:19:30]} Kf8 {[%emt 0:00:30]} 44. Nf5 {[%emt 0:00:30]} Bd5 {[%emt 0:00:30]} 45. c4 {[%emt 0:00:30]} Be6 {[%emt 0:00:30]} 46. Ne3 {[%emt 0:00:30]} Ke7 {[%emt 0:00:00]} 47. Kd2 f5 {[%emt 0:01:00]} 48. Rf1 {[%emt 0:01:00]} g6 {[%emt 0:00:30]} 49. Kc3 {[%emt 0:00:00]} Na6 {[%emt 0:00:00]} 50. Rd1 g5 {[%emt 0:00:00]} 51. Nd5+ Kf7 {[%emt 0:01:30]} 52. Re1 {[%emt 0:02:00]} Bxd5 {[%emt 0:00:00]} 53. cxd5 {[%emt 0:00:00]} Kf6 54. Kc4 {[%emt 0:01:00]} f4 {[%emt 0:01:30]} 55. d6 {[%emt 0:00:30]} Nb8 {[%emt 0:00:30]} 56. Kd5 {[%emt 0:00:30]} Nd7 {[%emt 0:00:00]} 57. Rc1 f3 {[%emt 0:01:00]} 58. Rc7 {[%emt 0:01:00]} Nb6+ {[%emt 0:00:00]} 59. Ke4 {[%emt 0:00:00]} Ke6 60. d7 {[%emt 0:01:00]} Nxd7 {[%emt 0:00:00]} 61. Rc6+ {[%emt 0:00:00]} Ke7 {[%emt 0:02:00]} 62. Ke3 {[%emt 0:00:00]} Nf6 63. Ra6 {[%emt 0:01:30]} Nd5+ {[%emt 0:01:00]} 64. Kf2 {[%emt 0:00:30]} e4 {[%emt 0:00:30]} 65. Rxa4 {[%emt 0:00:00]} e3+ 66. Ke1 {[%emt 0:01:00]} Nf6 {[%emt 0:00:00]} 67. Ra3 Nd5 {[%emt 0:01:30]} 68. Ra4 {[%emt 0:01:00]} Nf6 {[%emt 0:00:30]} 69. Ra3 {[%emt 0:00:30]} Nd5 {[%emt 0:00:00]} 70. Ra4 Nf6 {[%emt 0:00:00]} 71. Ra3 Nd5 {[%emt 0:00:38]} 72. Ra4 {[%emt 0:00:00]} Ke6 {[%emt 0:00:20]} 73. Rxg4 Kf5 {[%emt 0:01:32]} 74. Rd4 {[%emt 0:02:30]} Nf6 {[%emt 0:00:00]} 75. b4 Ng4 {[%emt 0:00:00]} 76. h3 Nh2 {[%emt 0:01:30]} 77. Rd1 {[%emt 0:00:00]} Ke4 {[%emt 0:00:00]} 78. b5 f2+ {[%emt 0:00:00]} 79. Ke2 {[%emt 0:00:45]} Nf3 {[%emt 0:00:12]} 80. Kf1 {[%emt 0:00:04]} Nd2+ 81. Ke2 {[%emt 0:02:41]} Nf3 {[%emt 0:01:17]} 82. Kf1 Nd2+ {[%emt 0:01:31]} 83. Ke2 {[%emt 0:00:00]} Nf3 {[%emt 0:00:30]} 84. Kf1 {[%emt 0:01:30]} Ng1 {[%emt 0:00:00]} 85. Ra1 Kf3 {[%emt 0:01:00]} 86. Ra3 {[%emt 0:00:00]} Ne2 {[%emt 0:00:00]} 0-1

[Event "36th Belgrade Trophy 2023"]
[Site "Belgrade"]
[Date "2023.11.27"]
[Round "3.11"]
[White "Veleski, Robert"]
[Black "Enkhnar, Enkhbaatar"]
[Result "0-1"]
[ECO "A45"]
[WhiteElo "2064"]
[BlackElo "2327"]
[Annotator "RC"]
[PlyCount "110"]
[EventDate "2023.10.23"]
[EventType "swiss"]
[EventCountry "SRB"]
[SourceTitle "playchess.com"]
[Source "ChessBase"]
[SourceQuality "1"]
[TimeControl "40/5400+30:900+30"]

1. d4 Nf6 {[%emt 1:31:00]} 2. Bg5 {[%emt 0:04:08]} e6 3. Bxf6 {[%emt 1:27:52]} Qxf6 {[%emt 0:00:00]} 4. e4 {[%emt 0:00:30]} c5 {[%emt 0:01:30]} 5. Nf3 {[%emt 0:00:30]} Qg6 {[%emt 0:00:30]} 6. Bd3 {[%emt 0:00:30]} cxd4 {[%emt 0:00:00]} 7. O-O Nc6 {[%emt 0:00:00]} 8. c3 Qf6 {[%emt 0:01:30]} 9. Qe2 {[%emt 0:01:30]} Bd6 {[%emt 0:00:30]} 10. Re1 {[%emt 0:00:30]} Be5 {[%emt 0:00:30]} 11. c4 {[%emt 0:00:30]} g5 {[%emt 0:00:30]} 12. Nbd2 {[%emt 0:00:30]} g4 {[%emt 0:00:30]} 13. Nxe5 {[%emt 0:00:30]} Nxe5 {[%emt 0:00:30]} 14. Rf1 {[%emt 0:00:30]} Qf4 {[%emt 0:00:00]} 15. Kh1 Rg8 {[%emt 0:01:00]} 16. g3 {[%emt 0:01:00]} Qh6 {[%emt 0:00:30]} 17. f4 {[%emt 0:00:30]} gxf3 {[%emt 0:00:30]} 18. Nxf3 {[%emt 0:00:30]} Nc6 {[%emt 0:00:30]} 19. e5 {[%emt 0:00:00]} b6 20. Kg1 {[%emt 0:01:00]} Bb7 {[%emt 0:01:00]} 21. Rae1 {[%emt 0:00:30]} O-O-O {[%emt 0:00:30]} 22. c5 {[%emt 0:00:30]} Rg4 {[%emt 0:00:30]} 23. cxb6 {[%emt 0:00:30]} axb6 {[%emt 0:00:30]} 24. Ba6 {[%emt 0:00:00]} Rdg8 25. Rf2 {[%emt 0:01:00]} f5 {[%emt 0:01:00]} 26. exf6 {[%emt 0:00:30]} Qxf6 {[%emt 0:00:30]} 27. Nd2 {[%emt 0:00:30]} Rf4 {[%emt 0:00:30]} 28. Bxb7+ {[%emt 0:00:30]} Kxb7 {[%emt 0:00:30]} 29. Rg2 {[%emt 0:00:30]} Rf5 {[%emt 0:00:30]} 30. Nc4 {[%emt 0:00:30]} Qe7 {[%emt 0:00:30]} 31. a3 {[%emt 0:00:30]} d5 {[%emt 0:00:30]} 32. Nd2 {[%emt 0:00:30]} Re5 {[%emt 0:00:30]} 33. Qd1 {[%emt 0:00:30]} Rxe1+ {[%emt 0:00:30]} 34. Qxe1 {[%emt 0:00:30]} e5 {[%emt 0:00:30]} 35. b4 {[%emt 0:00:30]} e4 {[%emt 0:00:30]} 36. Nb3 {[%emt 0:00:30]} Rc8 {[%emt 0:00:30]} 37. Rf2 {[%emt 0:00:30]} Ne5 {[%emt 0:00:30]} 38. Rf5 {[%emt 0:00:30]} Rf8 {[%emt 0:00:30]} 39. Rxf8 {[%emt 0:00:30]} Qxf8 {[%emt 0:00:30]} 40. Nxd4 {[%emt 0:00:30]} Qg7 {[%emt 0:00:30]} 41. Qf1 {[%emt 0:15:30]} Qg4 {[%emt 0:15:30]} 42. Kg2 {[%emt 0:00:30]} Qd7 {[%emt 0:00:30]} 43. Qf8 {[%emt 0:00:30]} Nc6 {[%emt 0:00:30]} 44. Nb5 {[%emt 0:00:30]} Na7 {[%emt 0:00:30]} 45. Nd6+ {[%emt 0:00:30]} Kc6 {[%emt 0:00:30]} 46. Nf7 {[%emt 0:00:30]} Kb5 {[%emt 0:00:30]} 47. Ne5 {[%emt 0:00:30]} Qe6 {[%emt 0:00:30]} 48. Qf1+ {[%emt 0:00:30]} Ka4 {[%emt 0:00:00]} 49. Qa6+ Kb3 {[%emt 0:01:00]} 50. Qxa7 {[%emt 0:01:00]} Qxe5 {[%emt 0:00:00]} 51. Qxh7 d4 {[%emt 0:01:00]} 52. Qf7+ {[%emt 0:01:00]} Kc3 {[%emt 0:00:30]} 53. Qa2 {[%emt 0:00:30]} e3 {[%emt 0:00:30]} 54. Kf1 {[%emt 0:00:30]} Qf5+ {[%emt 0:00:30]} 55. Ke1 {[%emt 0:00:09]} Qf2+ {[%emt 0:00:30]} 0-1

[Event "36th Belgrade Trophy 2023"]
[Site "Belgrade"]
[Date "2023.11.27"]
[Round "3.12"]
[White "Liu, Zexu"]
[Black "Kostic, Vladimir V"]
[Result "1-0"]
[ECO "B38"]
[WhiteElo "2286"]
[BlackElo "2041"]
[Annotator "RC"]
[PlyCount "85"]
[EventDate "2023.10.23"]
[EventType "swiss"]
[EventCountry "SRB"]
[SourceTitle "playchess.com"]
[Source "ChessBase"]
[SourceQuality "1"]
[TimeControl "40/5400+30:900+30"]

1. Nf3 {[%emt 1:31:00]} c5 {[%emt 0:00:39]} 2. c4 {[%emt 0:00:30]} g6 {[%emt 1:30:51]} 3. e4 {[%emt 0:00:30]} Nc6 {[%emt 0:00:30]} 4. d4 {[%emt 0:00:30]} cxd4 {[%emt 0:00:00]} 5. Nxd4 {[%emt 0:00:30]} Bg7 {[%emt 0:00:00]} 6. Be3 {[%emt 0:00:00]} d6 {[%emt 0:00:00]} 7. Nc3 {[%emt 0:00:00]} Nf6 {[%emt 0:00:00]} 8. Be2 {[%emt 0:00:00]} O-O {[%emt 0:00:00]} 9. O-O {[%emt 0:00:00]} Bd7 {[%emt 0:00:00]} 10. Qd2 {[%emt 0:00:00]} Nxd4 {[%emt 0:00:00]} 11. Bxd4 {[%emt 0:00:00]} Bc6 {[%emt 0:00:00]} 12. f3 {[%emt 0:03:30]} a5 {[%emt 0:04:30]} 13. Rab1 {[%emt 0:00:30]} Nd7 {[%emt 0:00:00]} 14. Be3 {[%emt 0:00:30]} a4 {[%emt 0:00:00]} 15. Rfc1 {[%emt 0:00:00]} Nc5 {[%emt 0:01:30]} 16. b4 {[%emt 0:01:00]} axb3 {[%emt 0:00:30]} 17. axb3 {[%emt 0:00:30]} Ra3 {[%emt 0:00:00]} 18. Bd1 {[%emt 0:00:30]} b6 {[%emt 0:01:00]} 19. Nd5 {[%emt 0:00:00]} Bxd5 {[%emt 0:00:00]} 20. cxd5 {[%emt 0:00:00]} Qa8 {[%emt 0:00:00]} 21. b4 {[%emt 0:00:00]} Na4 {[%emt 0:01:30]} 22. Bxa4 {[%emt 0:00:00]} Qxa4 {[%emt 0:00:00]} 23. Bxb6 {[%emt 0:00:00]} Rb8 {[%emt 0:00:00]} 24. Rc6 {[%emt 0:00:00]} h5 {[%emt 0:01:30]} 25. Bd4 {[%emt 0:00:00]} Rb3 {[%emt 0:00:00]} 26. Rxb3 {[%emt 0:00:00]} Qxb3 {[%emt 0:00:00]} 27. Bxg7 {[%emt 0:00:00]} Kxg7 {[%emt 0:00:00]} 28. Qd4+ {[%emt 0:00:00]} f6 {[%emt 0:00:00]} 29. Rc7 {[%emt 0:05:30]} Kf7 {[%emt 0:02:30]} 30. Rxe7+ {[%emt 0:00:00]} Kxe7 {[%emt 0:00:00]} 31. Qa7+ {[%emt 0:00:00]} Kf8 {[%emt 0:00:00]} 32. Qxb8+ {[%emt 0:00:00]} Kg7 {[%emt 0:00:00]} 33. Qc7+ {[%emt 0:00:00]} Kh6 {[%emt 0:00:00]} 34. Qxd6 {[%emt 0:00:00]} Qe3+ {[%emt 0:00:00]} 35. Kf1 {[%emt 0:00:00]} Qd3+ {[%emt 0:00:00]} 36. Kf2 {[%emt 0:03:30]} Qd4+ {[%emt 0:00:00]} 37. Kg3 {[%emt 0:00:00]} g5 {[%emt 0:00:00]} 38. h3 {[%emt 0:00:00]} g4 {[%emt 0:00:00]} 39. hxg4 {[%emt 0:00:00]} h4+ {[%emt 0:00:00]} 40. Kxh4 {[%emt 0:00:00]} Qa1 {[%emt 0:00:00]} 41. g5+ {[%emt 0:00:00]} Kh7 {[%emt 0:00:00]} 42. Qd7+ {[%emt 0:00:00]} Kg8 {[%emt 0:00:00]} 43. Qe6+ {[%emt 0:00:00]} 1-0

[Event "36th Belgrade Trophy 2023"]
[Site "Belgrade"]
[Date "2023.11.27"]
[Round "3.13"]
[White "Petrusic, Velimir"]
[Black "Popchev, Milko"]
[Result "1/2-1/2"]
[ECO "A47"]
[WhiteElo "2060"]
[BlackElo "2244"]
[Annotator "RC"]
[PlyCount "22"]
[EventDate "2023.10.23"]
[EventType "swiss"]
[EventCountry "SRB"]
[SourceTitle "playchess.com"]
[Source "ChessBase"]
[SourceQuality "1"]
[TimeControl "40/5400+30:900+30"]

1. d4 {[%emt 0:11:32]} Nf6 {[%emt 0:00:21]} 2. Nf3 {[%emt 0:00:13]} e6 {[%emt 0:00:10]} 3. e3 {[%emt 0:00:48]} b6 {[%emt 0:00:15]} 4. Nbd2 {[%emt 0:00:28]} Bb7 {[%emt 0:00:11]} 5. Bd3 {[%emt 0:00:30]} c5 {[%emt 0:00:23]} 6. O-O {[%emt 0:00:28]} Be7 {[%emt 0:00:09]} 7. c3 {[%emt 0:00:22]} Nc6 {[%emt 0:00:21]} 8. a3 {[%emt 0:01:10]} d5 {[%emt 0:00:18]} 9. dxc5 {[%emt 0:00:54]} bxc5 {[%emt 0:00:14]} 10. e4 {[%emt 0:00:15]} Qc7 {[%emt 0:00:30]} 11. Qe2 {[%emt 0:00:30]} Rd8 {[%emt 0:00:32]} 1/2-1/2

[Event "36th Belgrade Trophy 2023"]
[Site "Belgrade"]
[Date "2023.11.27"]
[Round "3.14"]
[White "Djokic, Nenad"]
[Black "Matovic, Andjela"]
[Result "1-0"]
[ECO "D15"]
[WhiteElo "2223"]
[BlackElo "1819"]
[Annotator "RC"]
[PlyCount "99"]
[EventDate "2023.10.23"]
[EventType "swiss"]
[EventCountry "SRB"]
[SourceTitle "playchess.com"]
[Source "ChessBase"]
[SourceQuality "1"]
[TimeControl "40/5400+30:900+30"]

1. d4 {[%emt 1:31:00]} d5 {[%emt 1:31:00]} 2. c4 {[%emt 0:00:30]} c6 {[%emt 0:00:30]} 3. Nf3 {[%emt 0:00:30]} Nf6 {[%emt 0:00:00]} 4. Nc3 a6 {[%emt 0:01:00]} 5. a4 {[%emt 0:01:00]} g6 {[%emt 0:00:30]} 6. Bf4 {[%emt 0:00:30]} Bg7 {[%emt 0:00:30]} 7. e3 {[%emt 0:00:30]} Qa5 {[%emt 0:00:30]} 8. Qb3 {[%emt 0:00:30]} b5 {[%emt 0:00:30]} 9. cxd5 {[%emt 0:00:30]} Nxd5 {[%emt 0:00:30]} 10. Be5 {[%emt 0:00:30]} O-O {[%emt 0:00:30]} 11. Bxg7 {[%emt 0:00:30]} Kxg7 {[%emt 0:00:30]} 12. Be2 {[%emt 0:00:30]} Bb7 {[%emt 0:00:30]} 13. O-O {[%emt 0:00:30]} Nxc3 {[%emt 0:00:30]} 14. bxc3 {[%emt 0:00:30]} Qc7 {[%emt 0:00:00]} 15. c4 Nd7 {[%emt 0:01:00]} 16. axb5 {[%emt 0:01:00]} axb5 {[%emt 0:00:00]} 17. cxb5 cxb5 {[%emt 0:01:00]} 18. Qxb5 {[%emt 0:01:00]} Qc6 {[%emt 0:00:30]} 19. Rac1 {[%emt 0:00:30]} Qxb5 {[%emt 0:00:00]} 20. Bxb5 {[%emt 0:00:30]} Bxf3 {[%emt 0:00:00]} 21. Bxd7 Bd5 {[%emt 0:01:30]} 22. f3 {[%emt 0:01:00]} Rfd8 {[%emt 0:00:00]} 23. Rc7 Rab8 {[%emt 0:00:00]} 24. Rfc1 Rb7 {[%emt 0:01:30]} 25. Rxb7 {[%emt 0:00:00]} Bxb7 {[%emt 0:00:00]} 26. Rc7 Ba8 {[%emt 0:01:00]} 27. e4 {[%emt 0:02:30]} h5 {[%emt 0:00:00]} 28. h4 Kh6 {[%emt 0:00:19]} 29. d5 g5 {[%emt 0:00:33]} 30. Bh3 Re8 {[%emt 0:01:08]} 31. g3 {[%emt 0:02:00]} gxh4 {[%emt 0:00:30]} 32. gxh4 {[%emt 0:00:30]} Kg7 {[%emt 0:00:30]} 33. Kf2 {[%emt 0:00:30]} Kf6 {[%emt 0:00:30]} 34. Ke3 {[%emt 0:00:30]} e5 {[%emt 0:00:00]} 35. Rc8 Rxc8 {[%emt 0:01:00]} 36. Bxc8 {[%emt 0:01:00]} Ke7 {[%emt 0:00:00]} 37. f4 Kd6 {[%emt 0:01:00]} 38. f5 {[%emt 0:01:00]} f6 {[%emt 0:00:30]} 39. Be6 {[%emt 0:00:30]} Ke7 {[%emt 0:00:00]} 40. Bc8 Kd8 {[%emt 0:00:00]} 41. Ba6 Ke7 {[%emt 0:16:30]} 42. Be2 {[%emt 0:00:00]} Bb7 {[%emt 0:00:00]} 43. Bxh5 Bc8 {[%emt 0:01:00]} 44. Kd2 {[%emt 0:17:30]} Bd7 {[%emt 0:00:30]} 45. Kc3 {[%emt 0:00:30]} Kd6 {[%emt 0:00:30]} 46. Kb4 {[%emt 0:00:30]} Bxf5 {[%emt 0:00:30]} 47. exf5 {[%emt 0:00:00]} Kxd5 {[%emt 0:00:30]} 48. Kc3 {[%emt 0:01:00]} Ke4 {[%emt 0:00:30]} 49. Bg4 {[%emt 0:00:30]} Kf4 {[%emt 0:00:30]} 50. h5 {[%emt 0:00:30]} 1-0